bitfinex-derivatives/quotes_ETHF0:USTF0_20260118
["timestamp","ask_amount","ask_price","bid_price","bid_amount"]
[1768713687614,0.00224186,3316.6,3315.2,0.15206327]
[1768713687814,0.98386862,3316.5,3315.2,0.15206327]
[1768713688025,0.00224186,3316.6,3315.2,0.15206327]
[1768713711253,0.00224186,3316.6,3315.2,1.1231267]
[1768713712054,0.00224186,3316.6,3315.3,0.15056778]
[1768713720160,0.00224186,3316.6,3315.7,0.15056778]
[1768713720458,0.006029,3317.4,3315.7,0.15056778]
[1768713721556,0.55944431,3317.2,3315.7,0.15056778]
[1768713726856,0.00226778,3317.2,3315.7,0.15056778]
[1768713729462,0.00226778,3317.2,3315.9,0.9706531]
[1768713731061,0.9706531,3316.4,3315.4,0.146]
[1768713735462,0.9706531,3316.4,3315.1,0.1]
[1768713735669,0.9706531,3316.4,3315.1,0.25056778]
[1768713744584,0.15719459,3316.7,3315.1,0.25056778]
[1768713744881,0.15719459,3316.7,3315.2,0.9706531]
[1768713744882,0.9706531,3316.5,3315.2,0.9706531]
[1768713750983,0.9706531,3316.5,3315.1,0.25056778]
[1768713751287,0.9706531,3316.3,3315.1,0.25056778]
[1768713756787,0.9706531,3316.1,3315.1,0.1]
[1768713760589,0.9706531,3316.2,3315.1,0.1]
[1768713772892,0.9706531,3316.1,3315.1,0.1]
[1768713778708,0.9706531,3316.3,3315.1,0.1]
[1768713784216,0.29598117,3316.8,3315.3,0.9706531]
[1768713784415,1.23770459,3316.7,3315.4,0.9706531]
[1768713784603,1.23770459,3316.6,3315.4,0.9706531]
[1768713784903,1.26663427,3316.8,3315.4,0.9706531]
[1768713785103,1.23776068,3316.7,3315.4,0.9706531]
[1768713785413,0.98291487,3316.6,3315.4,0.9706531]
[1768713785609,1.26663427,3316.8,3315.4,0.9706531]
[1768713785809,1.23786158,3316.7,3315.4,0.9706531]
[1768713786009,0.98299542,3316.6,3315.4,0.9706531]
[1768713786204,1.26663427,3316.8,3315.4,0.9706531]
[1768713786407,1.2378655,3316.7,3315.4,0.9706531]
[1768713786604,0.98298667,3316.6,3315.4,0.9706531]
[1768713786806,1.26663427,3316.8,3315.4,0.9706531]
[1768713787005,1.23792251,3316.7,3315.4,0.9706531]
[1768713787204,0.98304368,3316.6,3315.4,0.9706531]
[1768713787508,1.26663427,3316.8,3315.4,0.9706531]
[1768713787710,0.98300417,3316.7,3315.4,0.9706531]
[1768713787910,1.26663427,3316.8,3315.4,0.9706531]
[1768713788111,0.98300417,3316.7,3315.4,0.9706531]
[1768713788310,1.26663427,3316.8,3315.4,0.9706531]
[1768713788511,0.98294207,3316.7,3315.4,0.9706531]
[1768713788802,1.26663427,3316.8,3315.4,0.9706531]
[1768713789006,0.98294207,3316.7,3315.4,0.9706531]
[1768713789207,1.26663427,3316.8,3315.4,0.9706531]
[1768713789409,0.98287672,3316.7,3315.2,0.14312151]
[1768713789707,0.29598117,3316.8,3315.2,0.14312151]
[1768713789916,0.98287675,3316.7,3315.2,0.14312151]
[1768713790117,0.29598117,3316.8,3315.2,0.14312151]
[1768713790415,0.1508,3316.8,3315.2,0.14312151]
[1768713795614,0.14518117,3317.1,3315.2,0.14312151]
[1768713795816,1.2370936,3317.0,3315.2,0.14312151]
[1768713796117,1.2370936,3316.9,3315.2,0.14312151]
[1768713796420,0.14518117,3317.1,3315.2,0.14312151]
[1768713796614,1.23703123,3317.0,3315.2,0.14312151]
[1768713796820,0.98234029,3316.9,3315.4,0.14312151]
[1768713797023,0.98168489,3316.8,3315.4,0.14312151]
[1768713797220,0.14518117,3317.1,3315.4,0.14312151]
[1768713797522,1.3815336,3317.0,3315.4,0.14312151]
[1768713797716,1.23635243,3316.9,3315.4,0.14312151]
[1768713797912,0.14518117,3317.0,3315.4,0.14312151]
[1768713798113,1.23634612,3316.9,3315.4,0.14312151]
[1768713798319,0.14518117,3317.0,3315.4,0.14312151]
[1768713798515,1.23630894,3316.9,3315.4,0.14312151]
[1768713798714,0.14518117,3317.0,3315.4,0.14312151]
[1768713798915,1.23630894,3316.9,3315.4,0.14312151]
[1768713799215,0.14518117,3317.0,3315.4,0.14312151]
[1768713799414,1.23628493,3316.9,3315.4,0.14312151]
[1768713799613,0.14518117,3317.0,3315.4,0.14312151]
[1768713799813,1.23628242,3316.9,3315.4,0.14312151]
[1768713800014,0.14518117,3317.0,3315.4,0.14312151]
[1768713800219,0.98161236,3316.9,3315.4,0.14312151]
[1768713800521,0.14744895,3317.2,3315.5,0.14312151]
[1768713800721,1.38124115,3317.1,3315.5,0.14312151]
[1768713800923,0.14518117,3317.1,3315.5,0.14312151]
[1768713813432,0.98141571,3317.0,3315.5,0.14312151]
[1768713813625,0.14518117,3317.1,3315.5,0.14312151]
[1768713813824,0.9814157,3317.0,3315.5,0.14312151]
[1768713814026,0.14518117,3317.1,3315.5,0.14312151]
[1768713814431,0.98149717,3317.0,3315.5,0.14312151]
[1768713814728,0.14518117,3317.1,3315.5,0.14312151]
[1768713814929,0.98149717,3317.0,3315.5,0.14312151]
[1768713815137,0.14518117,3317.1,3315.5,0.14312151]
[1768713815324,0.98149717,3317.0,3315.5,0.14312151]
[1768713815525,0.14518117,3317.1,3315.5,0.14312151]
[1768713815729,0.98156107,3317.0,3315.5,0.14312151]
[1768713815930,0.14518117,3317.1,3315.5,0.14312151]
[1768713816130,0.98156107,3317.0,3315.5,0.14312151]
[1768713816335,0.14518117,3317.1,3315.5,0.14312151]
[1768713816526,0.98164088,3317.0,3315.5,0.14312151]
[1768713816726,0.14518117,3317.1,3315.5,0.14312151]
[1768713816930,0.98164088,3317.0,3315.5,0.14312151]
[1768713817127,0.14518117,3317.1,3315.5,0.14312151]
[1768713817427,0.98164088,3317.0,3315.5,0.14312151]
[1768713817628,0.14518117,3317.1,3315.5,0.14312151]
[1768713817928,0.98169714,3317.0,3315.5,0.14312151]
[1768713818128,0.14518117,3317.1,3315.5,0.14312151]
[1768713818325,0.98169714,3317.0,3315.5,0.14312151]
[1768713818525,0.14518117,3317.1,3315.5,0.14312151]
[1768713818722,0.98174147,3317.0,3315.5,0.14312151]
[1768713818928,0.14518117,3317.1,3315.5,0.14312151]
[1768713819130,0.98174147,3317.0,3315.5,0.14312151]
[1768713819329,0.14518117,3317.1,3315.5,0.14312151]
[1768713819535,0.98179676,3317.0,3315.5,0.14312151]
[1768713819735,0.14518117,3317.1,3315.5,0.14312151]
[1768713819939,0.98179783,3317.0,3315.5,0.14312151]
[1768713820142,0.14518117,3317.1,3315.5,0.14312151]
[1768713820331,0.98179783,3317.0,3315.5,0.14312151]
[1768713820641,0.14518117,3317.1,3315.5,0.14312151]
[1768713820940,0.98182077,3317.0,3315.5,0.14312151]
[1768713821140,0.14518117,3317.1,3315.5,0.14312151]
[1768713821345,0.98182058,3317.0,3315.5,0.14312151]
[1768713821548,0.14518117,3317.1,3315.5,0.14312151]
[1768713821840,0.98184863,3317.0,3315.5,0.14312151]
[1768713822028,0.14518117,3317.1,3315.2,0.146]
[1768713822231,0.14665207,3316.9,3315.2,0.146]
[1768713822528,0.14665207,3316.9,3315.3,0.14397424]
[1768713826542,0.14665207,3316.9,3315.3,0.28997424]
[1768713830143,1.12989599,3316.8,3315.3,0.28997424]
[1768713830344,0.98324392,3316.7,3315.3,0.28997424]
[1768713832242,0.98324392,3316.7,3315.3,0.14397424]
[1768713833459,0.14665207,3316.8,3315.3,0.14397424]
[1768713833652,0.98279324,3316.7,3315.3,0.14397424]
[1768713833950,0.14665207,3316.8,3315.3,0.14397424]
[1768713834250,0.98279343,3316.7,3315.3,0.14397424]
[1768713834449,0.14665207,3316.8,3315.1,0.1]
[1768713834649,0.13542671,3316.6,3315.1,0.1]
[1768713839459,0.13542671,3316.6,3315.1,0.24596435]
[1768713840356,1.1063771,3317.0,3315.2,0.14596435]
[1768713840560,1.24209265,3316.9,3315.2,0.14596435]
[1768713840857,1.24209265,3316.8,3315.2,0.14596435]
[1768713841157,1.1063771,3317.0,3315.2,0.14596435]
[1768713841349,1.24207798,3316.9,3315.2,0.14596435]
[1768713841550,1.24207798,3316.8,3315.2,0.14596435]
[1768713841750,1.1063771,3317.0,3315.2,0.14596435]
[1768713841950,1.24206653,3316.9,3315.2,0.14596435]
[1768713842152,1.24206653,3316.8,3315.2,0.14596435]
[1768713842449,1.1063771,3317.0,3315.2,0.14596435]
[1768713842749,1.2420408,3316.9,3315.2,0.14596435]
[1768713842950,0.9824755,3316.8,3315.2,0.14596435]
[1768713843152,1.1063771,3317.0,3315.2,0.14596435]
[1768713843352,1.24203603,3316.9,3315.2,0.14596435]
[1768713843650,0.98247073,3316.8,3315.2,0.14596435]
[1768713843850,1.1063771,3317.0,3315.2,0.14596435]
[1768713844053,1.24202671,3316.9,3315.2,0.14596435]
[1768713844350,0.98246434,3316.8,3315.2,0.14596435]
[1768713844651,1.1063771,3317.0,3315.2,0.14596435]
[1768713844851,1.24201923,3316.9,3315.2,0.14596435]
[1768713845151,0.98245842,3316.8,3315.2,0.14596435]
[1768713845351,1.1063771,3317.0,3315.2,0.14596435]
[1768713845552,1.24201535,3316.9,3315.2,0.14596435]
[1768713845751,0.98245545,3316.8,3315.2,0.14596435]
[1768713845952,1.1063771,3317.0,3315.2,0.14596435]
[1768713846250,1.24201524,3316.9,3315.2,0.14596435]
[1768713846448,0.98245537,3316.8,3315.2,0.14596435]
[1768713846649,1.1063771,3317.0,3315.2,0.14596435]
[1768713846857,1.24201826,3316.9,3315.2,0.14596435]
[1768713847058,0.98245775,3316.8,3315.2,0.14596435]
[1768713847260,1.1063771,3317.0,3315.2,0.14596435]
[1768713847558,1.24202665,3316.9,3315.2,0.14596435]
[1768713847756,0.98246438,3316.8,3315.2,0.14596435]
[1768713847957,1.1063771,3317.0,3315.2,0.14596435]
[1768713848258,1.24202665,3316.9,3315.2,0.14596435]
[1768713848450,0.98246438,3316.8,3315.2,0.14596435]
[1768713848651,1.1063771,3317.0,3315.2,0.14596435]
[1768713848850,1.24204783,3316.9,3315.2,0.14596435]
[1768713849056,0.98248113,3316.8,3315.2,0.14596435]
[1768713849260,1.1063771,3317.0,3315.2,0.14596435]
[1768713849557,0.97105804,3316.6,3315.2,1.11702239]
[1768713853559,1.10648475,3317.0,3315.2,1.11702239]
[1768713853761,0.97105804,3316.5,3315.2,1.11702239]
[1768713856068,0.13542671,3317.0,3315.3,0.14596435]
[1768713856364,0.97105804,3316.6,3315.3,0.14596435]
[1768713857966,0.97105804,3316.4,3315.3,0.14596435]
[1768713859869,0.97105804,3316.4,3315.1,0.1]
[1768713860868,0.97105804,3316.2,3315.1,0.1]
[1768713868672,0.13542671,3316.9,3315.1,0.1]
[1768713868868,0.97105804,3316.4,3315.1,0.1]
[1768713870772,0.13542671,3316.9,3315.1,0.1]
[1768713871072,0.97105804,3316.4,3315.1,1.07105804]
[1768713871277,0.97105804,3316.6,3315.1,1.21232736]
[1768713894695,1.11652288,3316.6,3315.1,1.21232736]
[1768713894994,0.97105804,3316.4,3315.1,1.21232736]
[1768713906410,0.97105804,3316.2,3315.1,0.1]
[1768713909310,0.14546484,3316.6,3315.1,0.1]
[1768713920516,1.11675363,3316.3,3315.1,0.1]
[1768713927024,0.15081,3316.6,3315.1,0.1]
[1768713927318,1.24931263,3316.5,3315.1,0.1]
[1768713927521,0.98649224,3316.4,3315.1,0.24275006]
[1768713927713,0.15081,3316.6,3315.1,0.24275006]
[1768713927914,1.24924203,3316.5,3315.1,0.24275006]
[1768713928117,0.98643654,3316.4,3315.1,0.24275006]
[1768713928317,0.15081,3316.6,3315.1,0.24275006]
[1768713928516,1.24919053,3316.5,3315.1,0.24275006]
[1768713928717,0.98639586,3316.4,3315.1,0.24275006]
[1768713929023,0.15081,3316.6,3315.1,0.24275006]
[1768713929226,1.24918658,3316.5,3315.1,0.24275006]
[1768713929426,0.98639191,3316.4,3315.1,0.24275006]
[1768713929628,0.15081,3316.6,3315.1,0.24275006]
[1768713929817,1.24915246,3316.5,3315.1,0.24275006]
[1768713930018,0.15081,3316.6,3315.1,0.24275006]
[1768713930218,1.24915269,3316.5,3315.1,0.24275006]
[1768713930413,0.15081,3316.6,3315.2,0.14275006]
[1768713930728,1.24912605,3316.5,3315.2,0.14275006]
[1768713930928,0.15081,3316.6,3315.2,0.14275006]
[1768713931227,1.24912599,3316.5,3315.2,0.14275006]
[1768713931427,0.15081,3316.6,3315.2,0.14275006]
[1768713931730,1.24910761,3316.5,3315.2,0.14275006]
[1768713931926,0.15081,3316.6,3315.2,0.14275006]
[1768713932128,1.24910761,3316.5,3315.2,0.14275006]
[1768713932329,0.15081,3316.6,3315.2,0.14275006]
[1768713932628,1.24910027,3316.5,3315.2,0.14275006]
[1768713932820,0.26277568,3316.5,3315.2,0.14275006]
[1768713933027,0.15081,3316.6,3315.2,0.14275006]
[1768713933326,0.98632505,3316.5,3315.2,0.14275006]
[1768713933522,0.15081,3316.6,3315.2,0.14275006]
[1768713933724,0.9863267,3316.5,3315.2,0.14275006]
[1768713934025,0.15081,3316.6,3315.2,0.14275006]
[1768713934225,0.9863267,3316.5,3315.2,0.14275006]
[1768713934534,0.15081,3316.6,3315.2,0.14275006]
[1768713934725,0.98633792,3316.5,3315.2,0.14275006]
[1768713935022,0.15081,3316.6,3315.2,0.14275006]
[1768713935223,0.98633758,3316.5,3315.2,0.14275006]
[1768713935422,0.15081,3316.6,3315.2,0.14275006]
[1768713935630,0.98635585,3316.5,3315.2,0.14275006]
[1768713935830,0.15081,3316.6,3315.2,0.14275006]
[1768713936031,0.98635585,3316.5,3315.2,0.14275006]
[1768713936334,0.15081,3316.6,3315.2,0.14275006]
[1768713936523,0.98636013,3316.5,3315.2,0.14275006]
[1768713936722,0.15081,3316.6,3315.2,0.14275006]
[1768713936923,0.98636013,3316.5,3315.2,0.14275006]
[1768713937124,0.15081,3316.6,3315.2,0.14275006]
[1768713937325,0.98637544,3316.5,3315.2,0.14275006]
[1768713937526,0.15081,3316.6,3315.2,0.14275006]
[1768713937831,0.98637544,3316.5,3315.2,0.14275006]
[1768713938036,0.15081,3316.6,3315.2,0.14275006]
[1768713938243,0.98637544,3316.5,3315.2,0.14275006]
[1768713938430,0.15081,3316.6,3315.2,0.14275006]
[1768713938634,0.98639612,3316.5,3315.2,0.14275006]
[1768713938834,0.15081,3316.6,3315.2,0.14275006]
[1768713939039,0.98639612,3316.5,3315.2,0.14275006]
[1768713939238,0.15081,3316.6,3315.2,0.14275006]
[1768713939536,0.98642241,3316.5,3315.2,0.14275006]
[1768713939726,0.15081,3316.6,3315.2,0.14275006]
[1768713939929,0.98642241,3316.5,3315.2,0.14275006]
[1768713940124,0.15081,3316.6,3315.2,0.14275006]
[1768713940328,0.98643671,3316.5,3315.2,0.14275006]
[1768713940536,0.15081,3316.6,3315.2,0.14275006]
[1768713940729,0.98645455,3316.5,3315.2,0.14275006]
[1768713941028,0.15081,3316.6,3315.2,0.14275006]
[1768713941229,0.98645455,3316.5,3315.2,0.14275006]
[1768713941529,0.15081,3316.6,3315.2,0.14275006]
[1768713941823,0.9864941,3316.5,3315.2,0.14275006]
[1768713942027,0.15081,3316.6,3315.2,0.14275006]
[1768713942227,0.9864943,3316.5,3315.2,0.14275006]
[1768713942434,0.15081,3316.6,3315.2,0.14275006]
[1768713942730,0.98654089,3316.5,3315.2,0.14275006]
[1768713942936,0.15081,3316.6,3315.2,0.14275006]
[1768713943138,0.98654089,3316.5,3315.2,0.14275006]
[1768713943434,0.15081,3316.6,3315.2,0.14275006]
[1768713943635,0.98659563,3316.5,3315.2,0.14275006]
[1768713943829,0.15081,3316.6,3315.2,0.14275006]
[1768713944029,0.98659563,3316.5,3315.2,0.14275006]
[1768713944230,0.15081,3316.6,3315.2,0.14275006]
[1768713944534,0.98665886,3316.5,3315.2,0.14275006]
[1768713944838,0.15081,3316.6,3315.2,0.14275006]
[1768713945035,0.98665896,3316.5,3315.2,0.14275006]
[1768713945336,0.15081,3316.6,3315.2,0.14275006]
[1768713945530,1.24204412,3316.5,3315.2,0.14275006]
[1768713945730,0.15081,3316.6,3315.2,0.14275006]
[1768713945932,1.24204412,3316.5,3315.2,0.14275006]
[1768713946127,0.15081,3316.6,3315.2,0.14275006]
[1768713946340,1.24213124,3316.5,3315.2,0.14275006]
[1768713946543,0.98682011,3316.4,3315.2,0.14275006]
[1768713946728,0.15081,3316.6,3315.2,0.14275006]
[1768713946932,1.24215391,3316.5,3315.2,0.14275006]
[1768713947131,0.98682011,3316.4,3315.2,0.14275006]
[1768713947327,0.15081,3316.6,3315.2,0.14275006]
[1768713947527,1.24383611,3316.5,3315.2,0.14275006]
[1768713947741,0.98847452,3316.4,3315.2,0.14275006]
[1768713947942,0.15081,3316.6,3315.2,0.14275006]
[1768713948142,1.24383611,3316.5,3315.2,0.14275006]
[1768713948344,0.98847452,3316.4,3315.2,0.14275006]
[1768713948537,0.15081,3316.6,3315.2,0.14275006]
[1768713948739,1.24400229,3316.5,3315.2,0.14275006]
[1768713948941,0.98860627,3316.4,3315.2,0.14275006]
[1768713949141,0.15081,3316.6,3315.2,0.14275006]
[1768713949441,1.24418208,3316.5,3315.2,0.14275006]
[1768713949644,0.98878599,3316.4,3315.2,0.14275006]
[1768713949841,0.15081,3316.6,3315.2,0.14275006]
[1768713950144,1.24422913,3316.5,3315.2,0.14275006]
[1768713950345,0.98878599,3316.4,3315.2,0.14275006]
[1768713950540,0.15081,3316.6,3315.2,0.14275006]
[1768713950740,1.2446859,3316.5,3315.2,0.14275006]
[1768713950940,0.98914749,3316.4,3315.2,0.14275006]
[1768713951143,0.15081,3316.6,3315.2,0.14275006]
[1768713951448,1.24468753,3316.5,3315.2,0.14275006]
[1768713951650,0.98914912,3316.4,3315.2,0.14275006]
[1768713951850,0.15081,3316.6,3315.2,0.14275006]
[1768713952144,1.24468802,3316.5,3315.2,0.14275006]
[1768713952346,1.24468893,3316.4,3315.2,0.14275006]
[1768713952545,0.15081,3316.6,3315.2,0.14275006]
[1768713952744,1.24469207,3316.5,3315.2,0.14275006]
[1768713953047,1.24469207,3316.4,3315.2,0.14275006]
[1768713953236,0.15081,3316.6,3315.2,0.14275006]
[1768713953432,1.24469732,3316.5,3315.2,0.14275006]
[1768713953637,1.24469732,3316.4,3315.2,0.14275006]
[1768713953834,0.15081,3316.6,3315.2,0.14275006]
[1768713954037,1.24469771,3316.5,3315.2,0.14275006]
[1768713954239,1.24469771,3316.4,3315.2,0.14275006]
[1768713954449,0.15081,3316.6,3315.2,0.14275006]
[1768713954640,1.24470276,3316.5,3315.2,0.14275006]
[1768713954840,1.24470276,3316.4,3315.2,0.14275006]
[1768713955041,0.98916054,3316.3,3315.2,0.14275006]
[1768713955242,0.15081,3316.6,3315.2,0.14275006]
[1768713955442,1.24470905,3316.5,3315.2,0.14275006]
[1768713955643,1.24470905,3316.4,3315.2,0.14275006]
[1768713955843,0.98916542,3316.3,3315.2,0.14275006]
[1768713956044,0.15081,3316.6,3315.2,0.14275006]
[1768713956246,1.24470905,3316.5,3315.2,0.14275006]
[1768713956443,1.24470905,3316.4,3315.2,0.14275006]
[1768713956647,0.98916542,3316.3,3315.2,0.14275006]
[1768713956848,0.15081,3316.6,3315.2,0.14275006]
[1768713957056,1.24472001,3316.5,3315.2,0.14275006]
[1768713957268,1.24472001,3316.4,3315.2,0.14275006]
[1768713957457,0.98917393,3316.3,3315.2,0.14275006]
[1768713957660,0.15081,3316.6,3315.2,0.14275006]
[1768713957959,1.24472496,3316.5,3315.2,0.14275006]
[1768713958161,1.24472496,3316.4,3315.2,0.14275006]
[1768713958361,0.98917778,3316.3,3315.2,0.14275006]
[1768713958562,0.15081,3316.6,3315.2,0.14275006]
[1768713958862,1.24472859,3316.5,3315.2,0.14275006]
[1768713959062,1.24472859,3316.4,3315.2,0.14275006]
[1768713959264,0.98918055,3316.3,3315.2,0.14275006]
[1768713959560,0.15081,3316.6,3315.2,0.14275006]
[1768713959766,1.2447332,3316.5,3315.2,0.14275006]
[1768713960062,1.2447332,3316.4,3315.2,0.14275006]
[1768713960363,0.98918406,3316.3,3315.2,0.14275006]
[1768713960563,0.2906093,3316.6,3315.1,0.1]
[1768713960860,1.2447372,3316.5,3315.1,0.1]
[1768713961059,1.2447372,3316.4,3315.1,0.1]
[1768713961262,0.9891871,3316.3,3315.1,0.1]
[1768713961456,0.2906093,3316.6,3315.1,0.1]
[1768713961658,1.24474448,3316.5,3315.1,0.1]
[1768713961859,1.24474448,3316.4,3315.1,0.1]
[1768713962054,0.98919262,3316.3,3315.1,0.1]
[1768713962255,0.2906093,3316.6,3315.1,0.1]
[1768713962456,1.24475275,3316.5,3315.1,0.1]
[1768713962753,1.24475275,3316.4,3315.1,0.1]
[1768713963049,0.98919887,3316.3,3315.1,0.1]
[1768713963252,0.2906093,3316.6,3315.1,0.1]
[1768713963454,1.24476224,3316.5,3315.1,0.1]
[1768713963661,1.24476224,3316.4,3315.1,0.1]
[1768713963862,0.98920806,3316.3,3315.1,0.1]
[1768713964164,0.2906093,3316.6,3315.1,0.1]
[1768713964359,1.24477671,3316.5,3315.1,0.1]
[1768713964559,1.24477671,3316.4,3315.1,0.1]
[1768713964759,0.98921975,3316.3,3315.1,0.1]
[1768713964960,0.1397993,3316.5,3315.1,0.1]
[1768713965263,1.24481063,3316.4,3315.1,0.1]
[1768713965467,0.98924424,3316.3,3315.1,0.1]
[1768713965650,0.1397993,3316.5,3315.1,0.1]
[1768713965850,1.24479518,3316.4,3315.1,0.1]
[1768713966055,0.98923197,3316.3,3315.1,0.1]
[1768713966265,0.1397993,3316.5,3315.1,0.1]
[1768713966565,1.24478242,3316.4,3315.1,0.1]
[1768713966758,0.1397993,3316.5,3315.1,0.1]
[1768713966759,0.98922183,3316.3,3315.1,0.1]
[1768713966960,0.1397993,3316.5,3315.1,0.1]
[1768713967161,1.24478242,3316.4,3315.1,0.1]
[1768713967365,0.98922183,3316.3,3315.1,0.1]
[1768713967661,0.1397993,3316.5,3315.1,0.1]
[1768713967863,1.24476376,3316.4,3315.1,0.1]
[1768713968062,0.989207,3316.3,3315.1,0.1]
[1768713968262,0.1397993,3316.5,3315.1,0.1]
[1768713968464,1.24474906,3316.4,3315.1,0.1]
[1768713968668,0.98919532,3316.3,3315.1,0.1]
[1768713968966,0.1397993,3316.5,3315.1,0.1]
[1768713969165,1.24474906,3316.4,3315.1,0.1]
[1768713969361,0.98919532,3316.3,3315.1,0.1]
[1768713969560,0.1397993,3316.5,3315.1,0.1]
[1768713969760,1.24473704,3316.4,3315.1,0.1]
[1768713969953,0.98918577,3316.3,3315.1,0.1]
[1768713970162,0.1397993,3316.5,3315.1,0.1]
[1768713970354,1.24472733,3316.4,3315.1,0.1]
[1768713970557,0.1397993,3316.5,3315.1,0.1]
[1768713970558,0.98917771,3316.3,3315.1,0.1]
[1768713970765,0.1397993,3316.5,3315.1,0.1]
[1768713971067,1.24472693,3316.4,3315.1,0.1]
[1768713971266,0.98917771,3316.3,3315.1,0.1]
[1768713971568,0.97127034,3316.2,3315.1,0.1]
[1768713972768,0.97127034,3316.3,3315.1,0.1]
[1768713984384,0.1397993,3316.5,3315.1,0.1]
[1768713984684,1.2448836,3316.4,3315.1,0.23719514]
[1768713984985,0.98933685,3316.3,3315.1,0.23719514]
[1768713985187,0.97127034,3316.5,3315.1,0.23719514]
[1768713985480,1.24488927,3316.4,3315.1,0.23719514]
[1768713985782,0.98934183,3316.3,3315.1,0.23719514]
[1768713985971,0.97127034,3316.5,3315.1,0.23719514]
[1768713986272,1.24488985,3316.4,3315.1,0.23719514]
[1768713986472,0.98934184,3316.3,3315.1,0.23719514]
[1768713986672,0.97127034,3316.5,3315.1,0.23719514]
[1768713986874,1.24489709,3316.4,3315.1,0.23719514]
[1768713987073,0.98934759,3316.3,3315.1,0.23719514]
[1768713987285,0.97127034,3316.5,3315.1,0.23719514]
[1768713987470,1.24490517,3316.4,3315.1,0.23719514]
[1768713987671,0.98935401,3316.3,3315.1,0.23719514]
[1768713987871,0.97127034,3316.5,3315.1,0.23719514]
[1768713988071,1.24490517,3316.4,3315.1,0.23719514]
[1768713988271,0.98935401,3316.3,3315.1,0.23719514]
[1768713988470,0.97127034,3316.5,3315.1,0.23719514]
[1768713988770,1.24491429,3316.4,3315.1,0.23719514]
[1768713988970,0.98936126,3316.3,3315.1,0.23719514]
[1768713989170,0.97127034,3316.3,3315.1,0.23719514]
[1768713990274,0.97127034,3316.3,3315.1,0.1]
[1768713993379,0.97127034,3316.2,3315.1,0.1]
[1768714001788,0.97127034,3316.4,3315.1,0.1]
[1768714001988,0.98942775,3316.3,3315.1,0.1]
[1768714002187,0.97127034,3316.2,3315.1,0.1]
[1768714011101,0.97127034,3316.4,3315.1,0.1]
[1768714011401,0.98675955,3316.3,3315.1,0.1]
[1768714011602,0.97127034,3316.4,3315.1,1.07127034]
[1768714011799,0.98675916,3316.3,3315.1,1.07127034]
[1768714012000,0.97127034,3316.4,3315.1,1.07127034]
[1768714012309,0.98675915,3316.3,3315.1,1.07127034]
[1768714012505,0.97127034,3316.4,3315.1,1.07127034]
[1768714012802,0.98675919,3316.3,3315.1,1.07127034]
[1768714012998,0.97127034,3316.4,3315.1,1.07127034]
[1768714013191,0.98675919,3316.3,3315.1,1.07127034]
[1768714013387,0.97127034,3316.4,3315.1,1.07127034]
[1768714013588,0.98675926,3316.3,3315.1,1.07127034]
[1768714013789,0.97127034,3316.4,3315.1,1.07127034]
[1768714013991,0.98675926,3316.3,3315.1,1.07127034]
[1768714014203,0.97127034,3316.4,3315.1,1.07127034]
[1768714014391,0.98675932,3316.3,3315.1,1.07127034]
[1768714014591,0.97127034,3316.4,3315.1,1.07127034]
[1768714014791,0.98675932,3316.3,3315.1,1.07127034]
[1768714014989,0.97127034,3316.4,3315.1,1.07127034]
[1768714015192,0.98675932,3316.3,3315.1,1.07127034]
[1768714015397,0.97127034,3316.4,3315.1,1.07127034]
[1768714015701,0.98676025,3316.3,3315.1,1.07127034]
[1768714016001,0.97127034,3316.4,3315.1,1.07127034]
[1768714016202,0.98676025,3316.3,3315.1,1.07127034]
[1768714016400,0.97127034,3316.4,3315.1,1.07127034]
[1768714016701,0.9867612,3316.3,3315.1,1.07127034]
[1768714016902,0.97127034,3316.4,3315.1,1.07127034]
[1768714017099,0.9867612,3316.3,3315.1,1.07127034]
[1768714017296,0.97127034,3316.4,3315.1,1.07127034]
[1768714017501,0.9867622,3316.3,3315.1,1.07127034]
[1768714017702,0.97127034,3316.4,3315.1,1.07127034]
[1768714017908,0.98676113,3316.3,3315.1,1.07127034]
[1768714018101,0.97127034,3316.4,3315.1,1.07127034]
[1768714018297,0.9867684,3316.3,3315.1,1.07127034]
[1768714018597,0.97127034,3316.4,3315.1,1.07127034]
[1768714018797,0.98674577,3316.3,3315.1,1.07127034]
[1768714019094,0.97127034,3316.4,3315.1,1.07127034]
[1768714019294,0.98674577,3316.3,3315.1,1.07127034]
[1768714019494,0.97127034,3316.4,3315.1,1.07127034]
[1768714019694,0.9867319,3316.3,3315.1,1.07127034]
[1768714019894,0.97127034,3316.4,3315.1,1.07127034]
[1768714020096,0.9867319,3316.3,3315.1,1.07127034]
[1768714020296,0.97127034,3316.4,3315.1,1.07127034]
[1768714020502,0.98673095,3316.3,3315.1,1.07127034]
[1768714020689,0.97127034,3316.4,3315.1,1.07127034]
[1768714020894,0.98673096,3316.3,3315.1,1.07127034]
[1768714021094,0.97127034,3316.4,3315.1,1.07127034]
[1768714021295,0.98673095,3316.3,3315.1,1.07127034]
[1768714021510,0.97127034,3316.4,3315.1,1.07127034]
[1768714021804,0.98671987,3316.3,3315.1,1.07127034]
[1768714021994,0.97127034,3316.4,3315.1,1.07127034]
[1768714022195,0.98671987,3316.3,3315.1,1.07127034]
[1768714022406,0.97127034,3316.4,3315.1,1.07127034]
[1768714022594,0.98671091,3316.3,3315.1,1.07127034]
[1768714022797,0.97127034,3316.4,3315.1,1.07127034]
[1768714023093,1.24227154,3316.3,3315.1,1.07127034]
[1768714023295,0.97127034,3316.4,3315.1,1.07127034]
[1768714023497,0.98670498,3316.3,3315.1,1.07127034]
[1768714023700,0.97127034,3316.4,3315.1,1.07127034]
[1768714023898,0.98668347,3316.3,3315.1,1.07127034]
[1768714024104,0.97127034,3316.4,3315.1,1.07127034]
[1768714024305,0.98668347,3316.3,3315.1,1.07127034]
[1768714024507,0.97127034,3316.4,3315.1,1.07127034]
[1768714024701,0.98668372,3316.3,3315.1,1.07127034]
[1768714024998,0.97127034,3316.4,3315.1,1.07127034]
[1768714025201,0.98668372,3316.3,3315.1,1.07127034]
[1768714025507,0.97127034,3316.4,3315.1,1.07127034]
[1768714025692,0.98668365,3316.3,3315.1,1.07127034]
[1768714025897,0.97127034,3316.4,3315.1,1.07127034]
[1768714026201,0.68678456,3316.9,3315.5,0.97127034]
[1768714026401,1.2421812,3316.8,3315.5,0.97127034]
[1768714026600,1.2421812,3316.7,3315.5,0.97127034]
[1768714026805,1.2421812,3316.6,3315.5,0.97127034]
[1768714026995,0.98664442,3316.5,3315.5,0.97127034]
[1768714027192,0.97127034,3316.8,3315.5,0.97127034]
[1768714027395,1.24192512,3316.7,3315.5,0.97127034]
[1768714027611,0.97127034,3316.8,3315.5,0.97127034]
[1768714027612,1.24192512,3316.6,3315.5,0.97127034]
[1768714027799,0.97127034,3316.8,3315.5,0.97127034]
[1768714028099,1.24179402,3316.7,3315.5,0.97127034]